bitfinex/quotes_SOLUSD_20220109
["timestamp","ask_amount","ask_price","bid_price","bid_amount"]
[1641754760063,1.745,143.3,143.2,41.18515983]
[1641754760270,1.745,143.35,143.21,0.25]
[1641754760465,1.745,143.35,143.21,3.25]
[1641754760667,1.745,143.35,143.21,5.03082586]
[1641754760867,1.745,143.35,143.21,39.92342586]
[1641754761065,28.78995077,143.35,143.21,39.92342586]
[1641754761268,28.78995077,143.35,143.22,10.7265]
[1641754761468,28.78995077,143.35,143.23,28.61188338]
[1641754761666,28.78995077,143.35,143.23,33.39270924]
[1641754762067,28.78995077,143.35,143.23,33.14270924]
[1641754762468,28.78995077,143.35,143.23,66.25308338]
[1641754762670,27.04495077,143.35,143.23,66.25308338]
[1641754762871,27.04495077,143.35,143.24,0.25]
[1641754763068,1.744,143.34,143.25,10.4671]
[1641754763471,1.744,143.34,143.26,3.0]
[1641754763667,1.744,143.34,143.26,30.6346681]
[1641754764070,1.744,143.34,143.28,10.4666]
[1641754765092,1.744,143.38,143.28,10.4666]
[1641754765691,9.01413705,143.43,143.29,3.77482586]
[1641754765892,1.744,143.43,143.3,38.26715251]
[1641754766090,33.350997,143.44,143.31,3.0]
[1641754766292,33.350997,143.44,143.31,3.25]
[1641754766691,33.350997,143.44,143.31,3.0]
[1641754766893,10.4646,143.41,143.31,3.0]
[1641754767091,30.68128978,143.4,143.3,27.80515251]
[1641754767492,30.68128978,143.4,143.28,1.743]
[1641754768193,30.68128978,143.4,143.27,82.4048]
[1641754768593,30.68128978,143.4,143.28,24.01608061]
[1641754768795,1.744,143.42,143.3,10.4642]
[1641754768996,1.744,143.42,143.31,0.25]
[1641754769194,1.744,143.42,143.31,1.993]
[1641754769398,23.7276,143.45,143.32,0.26]
[1641754769596,79.7766,143.46,143.33,1.743]
[1641754769802,1.743,143.46,143.35,10.4607]
[1641754770005,26.93722528,143.47,143.35,12.2037]
[1641754770197,25.19422528,143.47,143.36,0.25]
[1641754770396,1.743,143.46,143.36,0.25]
[1641754770601,1.743,143.46,143.34,64.83505464]
[1641754770997,1.743,143.46,143.35,0.51]
[1641754771796,1.743,143.46,143.37,10.4589]
[1641754771998,26.93722528,143.47,143.37,35.12230342]
[1641754772999,25.19422528,143.47,143.38,0.25]
[1641754773201,25.19422528,143.47,143.39,10.4582]
[1641754775101,22.69422528,143.47,143.4,38.82685635]
[1641754775301,1.743,143.5,143.4,38.82685635]
[1641754775805,1.742,143.51,143.4,38.82685635]
[1641754776001,15.1997,143.51,143.4,38.82685635]
[1641754776203,25.25538638,143.5,143.4,38.82685635]
[1641754776402,1.742,143.49,143.4,38.82685635]
[1641754777204,1.742,143.49,143.4,10.4577]
[1641754777406,1.742,143.49,143.37,48.0971]
[1641754778408,24.96773169,143.46,143.37,58.5564]
[1641754778608,1.743,143.45,143.37,10.4593]
[1641754778805,1.743,143.45,143.36,1.743]
[1641754779607,1.78082586,143.44,143.35,10.4612]
[1641754779808,1.78082586,143.44,143.25,1.94821718]
[1641754779809,1.743,143.43,143.25,1.94821718]
[1641754780211,1.78082586,143.42,143.25,1.94821718]
[1641754780408,30.59738672,143.4,143.26,25.0787349]
[1641754780608,1.744,143.39,143.26,25.0787349]
[1641754780808,1.744,143.39,143.27,0.25]
[1641754781211,1.744,143.39,143.26,25.0787349]
[1641754781811,1.744,143.39,143.29,27.54972592]
[1641754782710,1.744,143.41,143.29,27.54972592]
[1641754782912,12.2064,143.44,143.3,12.7193]
[1641754783110,1.744,143.44,143.3,12.4693]
[1641754783713,1.744,143.44,143.31,0.25]
[1641754783912,1.744,143.44,143.32,26.85790672]
[1641754784112,1.744,143.44,143.33,3.0]
[1641754784917,1.744,143.44,143.34,0.25]
[1641754785113,1.744,143.44,143.36,10.4605]
[1641754785314,1.744,143.44,143.37,28.89710653]
[1641754785813,1.743,143.47,143.37,28.89710653]
[1641754786418,35.23193732,143.46,143.37,39.35670653]
[1641754786714,1.743,143.45,143.37,39.35670653]
[1641754791249,1.743,143.45,143.31,1.743]
[1641754792149,1.81496472,143.43,143.32,27.43176579]
[1641754792350,1.81496472,143.43,143.32,37.89396579]
[1641754792949,1.81496472,143.44,143.33,0.25]
[1641754793149,1.743,143.43,143.33,0.25]
[1641754793850,1.743,143.43,143.36,28.04574659]
[1641754794056,1.743,143.44,143.36,28.04574659]
[1641754795849,22.78534725,143.43,143.35,10.4613]
[1641754796051,22.78534725,143.43,143.31,1.743]
[1641754796250,1.743,143.42,143.31,1.94821718]
[1641754796850,10.4655,143.39,143.32,28.40656728]
[1641754797251,3.55796472,143.42,143.32,28.40656728]
[1641754797451,1.81496472,143.42,143.33,0.25]
[1641754798352,1.81496472,143.42,143.35,10.4618]
[1641754798552,1.81496472,143.44,143.35,10.4618]
[1641754799156,24.3054,143.45,143.35,10.4618]
[1641754799354,52.69383252,143.45,143.36,25.16462439]
[1641754799555,52.69383252,143.45,143.37,10.4601]
[1641754799753,30.13143252,143.45,143.37,10.4601]
[1641754800454,10.4626,143.43,143.34,1.743]
[1641754800654,1.743,143.42,143.31,1.94821718]
[1641754800956,3.52382586,143.43,143.31,1.94821718]
[1641754801153,1.78082586,143.42,143.31,1.94821718]
[1641754801356,1.743,143.41,143.32,25.77886856]
[1641754801756,1.743,143.41,143.32,36.24286856]
[1641754801757,12.207,143.41,143.32,36.24286856]
[1641754802359,1.743,143.41,143.32,25.77886856]
[1641754803356,1.743,143.41,143.32,36.24286856]
[1641754803657,1.743,143.41,143.32,25.77886856]
[1641754804756,10.4649,143.4,143.32,25.77886856]
[1641754804960,1.743,143.39,143.32,25.77886856]
[1641754805556,32.9547955,143.39,143.32,25.77886856]
[1641754805757,32.9547955,143.39,143.3,33.7203]
[1641754806166,43.4204955,143.39,143.3,33.7203]
[1641754806566,32.9547955,143.39,143.3,23.2554]
[1641754808170,32.9547955,143.39,143.3,33.7206]
[1641754808671,10.4663,143.38,143.29,28.95556656]
[1641754808872,1.744,143.37,143.29,28.95556656]
[1641754809073,1.744,143.38,143.29,28.95556656]
[1641754809476,75.0,143.26,143.16,0.84756319]
[1641754809728,10.4796,143.2,143.16,0.84756319]
[1641754809880,1.746,143.19,143.16,0.84756319]
[1641754810078,1.746,143.22,143.16,0.84756319]
[1641754810480,34.9342,143.21,143.16,0.84756319]
[1641754810678,75.0,143.19,143.06,1.746]
[1641754810877,10.4808,143.17,143.05,0.07962902]
[1641754811078,10.4808,143.17,143.06,1.746]
[1641754811676,10.4808,143.17,143.07,21.33291951]
[1641754811877,10.4808,143.17,143.08,0.25]
[1641754812179,10.4808,143.17,143.07,29.31341951]
[1641754812378,10.4808,143.17,143.07,18.83291951]
[1641754813590,10.4824,143.15,143.07,18.83291951]
[1641754813791,1.746,143.17,143.07,18.83291951]
[1641754813991,1.746,143.21,143.08,0.25]
[1641754814190,1.746,143.22,143.09,1.746]
[1641754814391,1.746,143.22,143.1,0.25]
[1641754814792,24.92396175,143.22,143.1,7.40854893]
[1641754815796,10.4791,143.19,143.1,17.88714893]
[1641754816406,31.99537649,143.19,143.06,36.6747]
[1641754816603,1.746,143.18,143.06,1.746]
[1641754817424,1.746,143.18,143.07,20.67850954]
[1641754817622,1.746,143.23,143.07,20.93850954]
[1641754818424,23.934672,143.22,143.07,20.93850954]
[1641754818624,10.4798,143.18,143.07,20.93850954]
[1641754818826,10.4798,143.18,143.1,10.4793]
[1641754819026,10.4798,143.18,143.1,16.0422589]
[1641754819227,10.4798,143.18,143.1,10.4793]
[1641754820960,10.4805,143.17,143.09,25.52594386]
[1641754822641,10.4805,143.17,143.07,34.9299]
[1641754822840,10.4805,143.17,143.09,10.4803]
[1641754823239,10.4805,143.17,143.05,1.82562902]
[1641754823442,1.746,143.16,143.05,0.07962902]
[1641754823639,26.69824045,143.16,143.05,0.07962902]
[1641754823840,10.483,143.14,143.05,0.07962902]
[1641754824039,10.483,143.14,143.05,1.82662902]
[1641754824241,1.747,143.21,143.05,12.30932902]
[1641754824440,1.747,143.21,143.06,0.25]
[1641754824640,34.9432,143.18,143.06,0.25]
[1641754824839,1.746,143.17,143.06,0.25]
[1641754825041,25.38460752,143.17,143.06,0.25]
[1641754825243,25.38460752,143.17,143.05,2.07562902]
[1641754825748,10.4817,143.16,143.08,10.4814]
[1641754826142,1.746,143.17,143.08,10.4814]
[1641754826342,1.746,143.17,143.07,0.37961763]
[1641754826343,1.746,143.2,143.09,2.256]
[1641754827043,25.10375716,143.2,143.09,2.256]
[1641754827445,36.6752,143.24,143.1,23.63901561]
[1641754827647,1.746,143.24,143.1,23.63901561]
[1641754827848,1.746,143.26,143.11,2.256]
[1641754828246,1.746,143.26,143.11,9.20401678]
[1641754828464,25.71938808,143.26,143.11,9.20401678]
[1641754829066,10.4752,143.25,143.14,10.4747]
[1641754829267,25.71938808,143.26,143.14,10.4747]
[1641754829268,25.71938808,143.26,143.14,12.2197]
[1641754829465,25.71938808,143.26,143.1,1.745]
[1641754829766,25.71938808,143.26,143.09,47.4052]
[1641754829967,25.71938808,143.26,143.1,1.746]
[1641754830174,25.71938808,143.26,143.13,10.4778]
[1641754830369,25.71938808,143.26,143.14,3.44095831]
[1641754830968,25.71938808,143.26,143.15,0.25]
[1641754831167,25.71938808,143.26,143.14,3.44095831]
[1641754831768,10.4753,143.25,143.15,10.4751]
[1641754831968,1.745,143.24,143.15,10.4751]
[1641754832769,1.745,143.25,143.13,1.745]
[1641754833871,10.4782,143.21,143.13,12.2224]
[1641754834074,12.2242,143.21,143.13,12.2224]
[1641754834272,1.746,143.21,143.13,1.745]
[1641754834972,10.4803,143.18,143.13,1.745]
[1641754835174,10.4803,143.18,143.1,10.48]
[1641754835372,1.746,143.21,143.1,10.48]
[1641754835772,1.746,143.21,143.11,0.25]
[1641754835972,27.76007812,143.22,143.1,1.746]
[1641754836273,24.47942315,143.19,143.11,10.4789]
[1641754836574,1.746,143.18,143.08,24.8077]
[1641754836775,1.746,143.18,143.07,77.314]
[1641754836972,1.746,143.18,143.06,36.6782]
[1641754837172,1.746,143.18,143.06,60.89497806]
[1641754837774,1.746,143.18,143.1,10.4799]
[1641754837975,26.22542315,143.19,143.1,10.4799]
[1641754838373,24.47942315,143.19,143.1,10.4799]
[1641754839177,34.95902315,143.19,143.1,10.4799]
[1641754839377,1.746,143.18,143.1,10.4799]
[1641754840679,1.746,143.18,143.11,0.25]
[1641754840879,1.746,143.22,143.14,10.4769]
[1641754841082,1.746,143.23,143.14,18.3969]
[1641754841579,31.82336046,143.22,143.14,18.3969]
[1641754841979,31.82336046,143.22,143.14,7.92]
[1641754842179,1.746,143.21,143.11,0.25]
[1641754842379,1.746,143.21,143.1,0.25]
[1641754843380,1.746,143.21,143.09,1.746]
[1641754843984,1.746,143.21,143.06,3.9546846]
[1641754848418,12.2309,143.14,143.05,0.07962902]
[1641754849416,12.2309,143.14,143.05,10.56322902]
[1641754849821,12.2309,143.14,143.05,0.07962902]
[1641754850418,12.2309,143.14,143.05,10.56312902]
[1641754851020,12.2309,143.14,143.05,11.17866869]
[1641754851821,12.2309,143.14,143.05,10.56312902]
[1641754852321,1.747,143.14,143.05,10.56312902]
[1641754853123,1.747,143.14,143.05,0.07962902]
[1641754853923,1.747,143.19,143.06,1.747]
[1641754854124,1.747,143.19,143.06,8.983]
[1641754854324,1.747,143.19,143.07,0.25]
[1641754854525,1.747,143.19,143.09,10.4806]
[1641754854724,30.77884915,143.18,143.09,10.4806]
[1641754854927,30.77884915,143.18,143.06,1.747]
[1641754854928,10.4814,143.17,143.06,1.747]
[1641754855128,10.4814,143.17,143.05,0.07962902]
[1641754855129,1.746,143.16,143.05,0.07962902]
[1641754855527,34.9484,143.16,143.05,0.07962902]
[1641754855729,1.746,143.15,143.05,0.07962902]
[1641754855928,10.4842,143.13,143.05,0.07962902]
[1641754856131,12.2312,143.13,143.05,0.07962902]
[1641754856629,10.4842,143.13,143.05,0.07962902]
[1641754856827,1.747,143.15,143.05,0.07962902]
[1641754857028,12.2287,143.17,143.05,1.82662902]
[1641754857230,10.4817,143.17,143.05,1.82662902]
[1641754857730,10.4817,143.17,143.08,10.4814]
[1641754857931,38.00549114,143.17,143.08,10.4814]
[1641754859231,1.746,143.16,143.08,10.4814]
[1641754859429,1.746,143.16,143.06,10.4825]
[1641754859629,10.4839,143.14,143.05,24.91650425]
[1641754859830,10.4839,143.14,143.05,23.07982902]
[1641754860233,10.4839,143.14,143.05,0.07962902]
[1641754860831,33.01124155,143.14,143.05,0.07962902]
[1641754861031,10.4854,143.12,143.05,0.07962902]
[1641754861832,26.04727142,143.11,143.05,0.07962902]
[1641754862031,36.53347142,143.11,143.05,0.07962902]
[1641754862237,10.4862,143.11,143.05,0.07962902]
[1641754862631,75.4488,143.14,143.05,0.07962902]
[1641754863233,75.4488,143.14,143.02,0.03791311]
[1641754863234,23.39653279,143.13,143.02,19.83122246]
[1641754863433,23.39653279,143.13,143.02,35.192]
[1641754863634,23.39653279,143.13,143.02,34.942]
[1641754863839,23.39653279,143.13,143.01,5.7016846]
[1641754864334,23.39653279,143.13,143.01,28.87042318]
[1641754865234,12.2323,143.12,143.03,10.4852]
[1641754866040,12.2323,143.12,143.04,2.63027199]
[1641754866236,10.4853,143.12,143.04,2.63027199]
[1641754866439,10.4853,143.12,143.03,10.4852]
[1641754866636,10.4868,143.1,143.01,10.486]
[1641754867337,34.09736514,143.1,143.01,10.486]
[1641754868339,10.4868,143.1,143.0,260.58]
[1641754868539,1.747,143.09,143.0,260.58]
[1641754871461,1.747,143.11,143.04,10.4844]
[1641754872560,26.96621259,143.12,143.04,10.4844]
[1641754873365,26.96621259,143.12,143.02,10.4854]
[1641754873584,1.747,143.11,143.0,260.58]
[1641754873783,10.4876,143.09,143.0,260.58]
[1641754873987,1.747,143.08,143.0,260.58]
[1641754874184,1.747,143.11,143.0,260.58]
[1641754874384,1.747,143.11,143.01,19.2711839]
[1641754874585,1.747,143.11,143.03,10.485]
[1641754875085,1.747,143.11,143.01,19.2711839]
[1641754875287,12.233,143.11,143.01,19.2711839]
[1641754876887,12.233,143.11,143.01,29.7578839]
[1641754877088,12.233,143.11,143.0,260.58]
[1641754878389,12.233,143.11,143.01,10.4865]
[1641754878993,12.233,143.11,143.0,260.58]
[1641754880796,12.233,143.11,143.0,271.0673]
[1641754881499,1.747,143.11,143.0,260.58]
[1641754882796,12.233,143.11,143.0,260.58]
[1641754883797,12.233,143.11,143.02,10.4859]
[1641754884599,12.233,143.11,143.02,11.86141835]
[1641754885899,22.9954,143.14,143.03,1.997]
[1641754886101,22.9954,143.14,143.03,5.257]
[1641754886503,1.747,143.18,143.03,4.997]
[1641754886801,31.33118804,143.17,143.05,22.76143877]
[1641754887000,41.81348804,143.17,143.06,10.4823]
[1641754887602,1.746,143.16,143.04,23.8185]
[1641754888103,31.3580139,143.17,143.05,39.0]
[1641754888304,10.4848,143.13,143.04,23.8185]
[1641754888601,1.747,143.12,143.03,24.0241]
[1641754889000,1.747,143.12,143.04,0.25]
[1641754889203,1.747,143.17,143.04,0.25]
[1641754889601,10.4846,143.14,143.04,10.7344]
[1641754890203,38.50628208,143.14,143.04,10.7344]
[1641754891409,38.50628208,143.14,143.04,10.4844]
[1641754891604,38.50628208,143.14,143.03,48.471]
[1641754891805,1.747,143.13,143.03,48.471]
[1641754892004,12.2322,143.13,143.03,48.471]
[1641754892804,12.2322,143.13,143.03,58.9562]
[1641754893104,1.747,143.13,143.03,48.471]
[1641754894304,12.2319,143.13,143.04,10.4845]
[1641754895605,12.2319,143.13,143.03,48.471]
[1641754896907,12.2319,143.13,143.01,10.486]
[1641754897110,12.2319,143.13,143.02,0.25]
[1641754898910,1.747,143.13,143.02,0.25]
[1641754899110,1.747,143.13,143.03,1.78082586]
[1641754899313,74.9054,143.18,143.03,1.78082586]
[1641754899509,74.9054,143.18,143.04,27.2366]
[1641754899712,74.9054,143.18,143.04,28.9826]
[1641754899909,106.21946785,143.18,143.04,28.9826]
[1641754900811,116.70116785,143.18,143.04,39.4669]
[1641754901017,12.2287,143.18,143.04,39.4669]
[1641754901216,1.746,143.2,143.04,64.75692586]
[1641754902015,24.56888084,143.19,143.04,64.75692586]
[1641754902515,24.56888084,143.19,143.06,3.9546846]
[1641754902715,24.56888084,143.19,143.09,10.4804]
[1641754903318,24.56888084,143.19,143.1,0.25]
[1641754903517,12.2258,143.21,143.1,0.25]
[1641754903719,103.4235,143.22,143.12,10.4784]
[1641754903919,101.6775,143.22,143.13,0.25]
[1641754904118,101.6775,143.22,143.1,54.9867]
[1641754904319,101.1775,143.22,143.1,54.9867]
[1641754904518,27.8442024,143.21,143.1,6.469]
[1641754904723,1.746,143.2,143.1,16.9485]
[1641754905820,29.5902024,143.21,143.1,16.9485]
[1641754906422,40.0694024,143.21,143.1,16.9485]
[1641754907329,29.5902024,143.21,143.1,16.9485]
[1641754908727,10.4806,143.19,143.1,16.9485]
[1641754908926,31.92819423,143.18,143.1,10.4795]
[1641754909128,30.18219423,143.18,143.1,10.4795]
[1641754909526,1.746,143.17,143.08,10.4809]
[1641754910329,1.246,143.17,143.08,10.4809]
[1641754910728,3.02682586,143.17,143.06,10.4824]
[1641754911028,13.50922586,143.17,143.02,46.8053]
[1641754911231,38.23842586,143.17,143.02,46.8053]
[1641754911729,38.23842586,143.17,143.04,10.4838]
[1641754911929,28.96178516,143.15,143.04,34.0872]
[1641754912132,1.747,143.14,143.01,1.747]
[1641754912330,10.4865,143.11,143.0,260.58]
[1641754912532,1.747,143.1,143.0,260.58]
[1641754912929,1.747,143.12,143.01,21.89097625]
[1641754913535,29.08942061,143.12,143.01,21.89097625]
[1641754913731,10.4879,143.09,143.01,21.89097625]
[1641754913935,36.7076,143.12,143.01,21.89097625]
[1641754914138,1.747,143.12,143.01,21.89097625]
[1641754914335,1.747,143.12,143.02,0.25]
[1641754915565,26.2505,143.13,143.02,0.25]
[1641754915763,10.4868,143.11,143.02,0.25]
[1641754916363,35.0123522,143.11,143.01,32.37747625]
[1641754916565,1.747,143.1,143.01,21.89097625]
[1641754917064,12.2346,143.1,143.01,21.89097625]
[1641754917870,10.4876,143.1,143.01,21.89097625]
[1641754918268,1.747,143.12,143.01,32.37757625]
[1641754918467,26.2505,143.13,143.02,0.25]
[1641754918667,24.5035,143.13,143.02,0.25]
[1641754918869,24.5035,143.13,143.02,2.03082586]
[1641754919069,1.747,143.16,143.02,0.25]
[1641754919270,26.13763605,143.15,143.02,23.4868]
[1641754919468,1.747,143.14,143.04,10.4843]
[1641754919667,1.747,143.14,143.04,16.14633432]
[1641754920469,1.747,143.16,143.06,10.4824]
[1641754921269,1.747,143.16,143.07,21.89097625]
[1641754921768,1.747,143.16,143.04,24.5943]
[1641754921969,12.2296,143.16,143.05,0.25]
[1641754922169,12.2296,143.16,143.04,24.5943]
[1641754922772,27.62856087,143.15,143.04,45.18075744]
[1641754922970,1.747,143.14,143.05,0.25]
[1641754923171,26.4533,143.17,143.05,12.51392586]
[1641754923372,24.7063,143.17,143.06,1.78082586]
[1641754923780,24.7063,143.17,143.07,0.25]
[1641754923975,53.78427521,143.17,143.07,0.25]
[1641754924173,53.78427521,143.17,143.07,8.99737899]
[1641754924374,53.78427521,143.17,143.09,10.4802]
[1641754924576,29.07797521,143.17,143.09,10.4802]
[1641754925175,1.746,143.16,143.05,3.0]
[1641754925377,1.746,143.16,143.04,24.5943]
[1641754925575,1.746,143.16,143.0,260.58]
[1641754925875,14.00962586,143.16,143.01,51.7696846]
[1641754926082,12.2288,143.16,143.02,28.13272522]
[1641754926275,12.2288,143.16,143.02,30.12972522]
[1641754926876,12.2288,143.16,143.06,10.4828]
[1641754930278,14.00962586,143.16,143.06,10.4828]
[1641754930676,12.2288,143.16,143.06,10.4828]
[1641754931180,1.746,143.16,143.06,10.4828]
[1641754932878,12.2286,143.16,143.06,10.4828]
[1641754933081,12.2286,143.16,143.04,10.4839]
[1641754933279,12.2286,143.16,143.04,10.7339]
[1641754934980,10.4854,143.12,143.03,26.47216071]
[1641754935583,42.37289266,143.12,143.03,24.4972]
[1641754936482,31.88749266,143.12,143.03,34.9823]
[1641754936680,31.88749266,143.12,143.03,24.4972]
[1641754937080,31.88749266,143.12,143.03,26.47216071]
[1641754937281,86.5002,143.14,143.03,26.47216071]
[1641754937481,86.5002,143.14,143.04,0.25]
[1641754938284,28.36572098,143.13,143.04,0.25]
[1641754938884,28.36572098,143.13,143.04,10.7343]
[1641754939287,28.36572098,143.13,143.04,12.70926071]
[1641754940286,86.5002,143.14,143.04,15.67925603]
[1641754941015,76.0157,143.14,143.04,15.67925603]
[1641754941393,35.3549,143.15,143.04,15.67925603]
[1641754941394,1.747,143.15,143.04,15.67925603]
[1641754941593,30.25935494,143.16,143.04,17.42625603]
[1641754941792,30.25935494,143.16,143.08,10.4814]
[1641754942196,28.4302184,143.16,143.08,10.4814]
[1641754943096,88.7954,143.17,143.08,10.4814]
[1641754943496,78.3131,143.17,143.08,10.4814]
[1641754945798,78.3131,143.17,143.09,10.4806]
[1641754946101,76.5661,143.17,143.09,10.4806]
[1641754946398,78.3121,143.17,143.09,10.4806]
[1641754946597,76.5661,143.17,143.09,10.4806]
[1641754946797,78.3121,143.17,143.09,10.4806]
[1641754947897,78.3121,143.17,143.09,17.27383844]
[1641754948522,78.3121,143.17,143.09,10.4806]
[1641754949323,76.5661,143.17,143.09,10.4806]
[1641754950023,3.57513654,143.19,143.1,3.25]
[1641754950323,3.57513654,143.19,143.13,10.4775]
[1641754950324,1.82913654,143.19,143.13,10.4775]
[1641754950523,1.82913654,143.19,143.14,3.0]
[1641754950726,1.82913654,143.19,143.14,3.25]
[1641754950924,1.82913654,143.22,143.14,3.25]
[1641754951328,1.82913654,143.22,143.15,24.7415225]
[1641754951526,1.82913654,143.22,143.16,3.0]
[1641754951725,1.82913654,143.22,143.16,11.715]
[1641754952027,1.82913654,143.26,143.15,1.745]
[1641754952227,1.745,143.24,143.13,1.97496071]
[1641754952426,1.745,143.25,143.13,1.97496071]
[1641754952626,29.44119981,143.24,143.13,1.97496071]
[1641754952825,29.44119981,143.24,143.11,49.95836071]
[1641754952826,1.745,143.23,143.11,49.95836071]
[1641754953626,1.82913654,143.22,143.11,47.9834]
[1641754953841,1.746,143.21,143.11,47.9834]
[1641754954027,25.4260427,143.21,143.11,47.9834]
[1641754954827,35.9052427,143.21,143.11,58.4621]
[1641754955030,12.2252,143.21,143.12,0.25]
[1641754955229,1.746,143.21,143.12,0.25]
[1641754955530,1.746,143.21,143.12,0.51]
[1641754955931,81.39633654,143.23,143.13,1.78082586]
[1641754955932,1.82913654,143.23,143.13,1.78082586]
[1641754956128,1.82913654,143.23,143.14,25.48116261]
[1641754956332,1.82913654,143.23,143.14,25.99116261]
[1641754956528,3.57513654,143.25,143.14,25.99116261]
[1641754956730,1.82913654,143.25,143.15,3.52582586]
[1641754956933,1.82913654,143.25,143.16,0.51]
[1641754957230,1.82913654,143.25,143.17,12.2168]
[1641754957430,34.59190119,143.27,143.18,5.58184796]
[1641754957633,3.57413654,143.29,143.1,3.9546846]
[1641754957634,75.0,143.14,143.1,3.9546846]
[1641754957834,45.80727263,143.15,143.05,1.745]
[1641754958036,1.747,143.14,143.02,23.4046]
[1641754958633,1.747,143.14,143.03,20.1974925]
[1641754958834,45.80727263,143.15,143.03,20.1974925]
[1641754959035,45.80727263,143.15,143.04,3.0]
[1641754959234,45.80727263,143.15,143.09,10.4796]
[1641754959833,16.47047263,143.15,143.11,75.0]
[1641754960034,16.47047263,143.15,143.12,0.26]
[1641754960333,7.263e-05,143.15,143.14,28.46232683]
[1641754960533,1.746,143.23,143.15,16.47047263]
[1641754960934,76.7919,143.24,143.15,16.47047263]
[1641754961336,1.745,143.25,143.15,16.47047263]
[1641754961535,12.2192,143.26,143.16,0.25]
[1641754961734,12.2192,143.26,143.17,22.79317016]
[1641754961935,10.4742,143.26,143.17,22.79317016]
[1641754962136,10.4742,143.26,143.18,3.0]
[1641754962338,107.66315496,143.27,143.18,3.0]
[1641754962635,27.90217938,143.33,143.18,3.0]
[1641754962636,10.4707,143.31,143.19,2.255]
[1641754962836,1.745,143.3,143.19,0.51]
[1641754963436,1.745,143.3,143.2,27.12847615]
[1641754963640,10.4707,143.31,143.2,27.12847615]
[1641754963844,1.745,143.3,143.21,3.26]
[1641754964044,10.4707,143.31,143.21,3.51]
[1641754964645,10.4707,143.31,143.21,3.26]
[1641754965148,1.745,143.33,143.21,3.26]
[1641754965359,1.744,143.35,143.22,0.25]
[1641754965549,84.70547938,143.36,143.22,0.25]
[1641754965748,82.96147938,143.36,143.22,0.25]
[1641754966146,77.6947,143.36,143.22,0.25]
[1641754968873,0.26,143.29,143.17,36.6472]
[1641754969067,1.745,143.28,143.17,1.744]
[1641754969470,0.26,143.27,143.17,1.744]
[1641754969769,1.745,143.26,143.15,16.47047263]
[1641754969973,77.1176,143.3,143.16,12.4674]
[1641754970473,77.1176,143.3,143.17,3.0]
[1641754970670,77.1176,143.3,143.18,29.59086929]
[1641754970870,0.25,143.29,143.18,29.59086929]
[1641754971168,1.745,143.28,143.19,3.0]
[1641754971371,1.745,143.28,143.19,13.4727]
[1641754971570,1.745,143.28,143.19,3.0]
[1641754972373,10.4736,143.26,143.19,13.4731]
[1641754972975,0.26,143.27,143.19,13.4731]
[1641754973174,1.995,143.29,143.19,13.4731]
[1641754973572,10.4726,143.28,143.19,13.4731]
[1641754974573,0.26,143.27,143.19,13.4731]
[1641754974777,10.7329,143.27,143.19,13.4731]
[1641754975072,0.26,143.26,143.19,13.4731]
[1641754975873,10.4721,143.29,143.19,13.4731]
[1641754976475,77.1176,143.3,143.21,10.4711]
[1641754976874,1.745,143.34,143.21,12.2161]
[1641754977474,1.744,143.32,143.22,28.78526222]
[1641754977874,0.26,143.31,143.22,28.78526222]
[1641754978674,10.4712,143.3,143.22,28.78526222]
[1641754978874,0.26,143.31,143.22,28.78526222]
[1641754979076,107.8296,143.33,143.22,28.78526222]